fUSD/lending_fUSD_20260605
["ID","MTS","AMOUNT","RATE_DAILY","PERIOD"]
[424173732,1780626678000,-164.844063,0.00037808,30]
[424173733,1780626678000,-164.844063,0.00037808,30]
[424173722,1780626678000,-164.844063,0.00037808,30]
[424173742,1780626678000,-3962.057198,0.00037808,30]
[424173743,1780626678000,-3962.057198,0.00037808,30]
[424173745,1780626678000,-3962.057198,0.00037808,30]
[424173750,1780626678000,-3962.057198,0.00037808,30]
[424173747,1780626678000,-3962.057198,0.00037808,30]
[424173749,1780626678000,-3962.057198,0.00037808,30]
[424173744,1780626678000,-3962.057198,0.00037808,30]
[424173748,1780626678000,-3962.057198,0.00037808,30]
[424173746,1780626678000,-3962.057198,0.00037808,30]
[424173752,1780626678000,-3962.057198,0.00037808,30]
[424173751,1780626678000,-3962.057198,0.00037808,30]
[424173695,1780626678000,-500.0,0.00037808,2]
[424173741,1780626678000,-3962.057198,0.00037808,30]
[424173725,1780626678000,-164.844063,0.00037808,30]
[424173734,1780626678000,-164.844063,0.00037808,30]
[424173724,1780626678000,-164.844063,0.00037808,30]
[424173702,1780626678000,-500.0,0.00037808,2]
[424173721,1780626678000,-164.844063,0.00037808,30]
[424173698,1780626678000,-500.0,0.00037808,2]
[424173703,1780626678000,-500.0,0.00037808,2]
[424173704,1780626678000,-500.0,0.00037808,2]
[424173700,1780626678000,-500.0,0.00037808,2]
[424173705,1780626678000,-500.0,0.00037808,2]
[424173699,1780626678000,-500.0,0.00037808,2]
[424173706,1780626678000,-500.0,0.00037808,2]
[424173708,1780626678000,-505.05411648,0.00037808,2]
[424173709,1780626678000,-500.0,0.00037808,60]
[424173716,1780626678000,-164.844063,0.00037808,30]
[424173711,1780626678000,-160.703618,0.00037808,30]
[424173707,1780626678000,-500.0,0.00037808,2]
[424173713,1780626678000,-176.413413,0.00037808,30]
[424173723,1780626678000,-164.844063,0.00037808,30]
[424173728,1780626678000,-164.844063,0.00037808,30]
[424173727,1780626678000,-164.844063,0.00037808,30]
[424173719,1780626678000,-164.844063,0.00037808,30]
[424173718,1780626678000,-164.844063,0.00037808,30]
[424173717,1780626678000,-164.844063,0.00037808,30]
[424173720,1780626678000,-164.844063,0.00037808,30]
[424173715,1780626678000,-281.689614,0.00037808,30]
[424173712,1780626678000,-219.528184,0.00037808,30]
[424173710,1780626678000,-500.0,0.00037808,60]
[424173714,1780626678000,-160.593445,0.00037808,30]
[424173798,1780626679000,-322.125899,0.00037808,30]
[424173796,1780626679000,-322.125899,0.00037808,30]
[424173794,1780626679000,-322.125899,0.00037808,30]
[424173792,1780626679000,-322.125899,0.00037808,30]
[424173797,1780626679000,-322.125899,0.00037808,30]
[424173789,1780626679000,-322.125899,0.00037808,30]
[424173787,1780626679000,-322.125899,0.00037808,30]
[424173788,1780626679000,-322.125899,0.00037808,30]
[424173782,1780626679000,-151.0,0.00037808,30]
[424173786,1780626679000,-160.835098,0.00037808,30]
[424173791,1780626679000,-322.125899,0.00037808,30]
[424173790,1780626679000,-322.125899,0.00037808,30]
[424173793,1780626679000,-322.125899,0.00037808,30]
[424173809,1780626679000,-151.0,0.00037808,30]
[424173800,1780626679000,-322.125899,0.00037808,30]
[424173799,1780626679000,-322.125899,0.00037808,30]
[424173810,1780626679000,-151.0,0.00037808,30]
[424173811,1780626679000,-151.0,0.00037808,30]
[424173801,1780626679000,-322.125899,0.00037808,30]
[424173803,1780626679000,-322.125899,0.00037808,30]
[424173808,1780626679000,-151.0,0.00037808,30]
[424173802,1780626679000,-322.125899,0.00037808,30]
[424173807,1780626679000,-151.0,0.00037808,30]
[424173806,1780626679000,-322.125906,0.00037808,30]
[424173805,1780626679000,-322.125899,0.00037808,30]
[424173780,1780626679000,-151.0,0.00037808,30]
[424173795,1780626679000,-322.125899,0.00037808,30]
[424173779,1780626679000,-177.553816,0.00037808,7]
[424173755,1780626679000,-3962.057202,0.00037808,30]
[424173777,1780626679000,-177.553819,0.00037808,7]
[424173804,1780626679000,-322.125899,0.00037808,30]
[424173754,1780626679000,-3962.057198,0.00037808,30]
[424173753,1780626679000,-3962.057198,0.00037808,30]
[424173756,1780626679000,-151.0,0.00037808,30]
[424173759,1780626679000,-248.189265,0.00037808,30]
[424173757,1780626679000,-151.0,0.00037808,30]
[424173761,1780626679000,-177.553819,0.00037808,7]
[424173758,1780626679000,-157.848844,0.00037808,30]
[424173760,1780626679000,-177.553819,0.00037808,7]
[424173762,1780626679000,-177.553819,0.00037808,7]
[424173764,1780626679000,-177.553819,0.00037808,7]
[424173766,1780626679000,-177.553819,0.00037808,7]
[424173763,1780626679000,-177.553819,0.00037808,7]
[424173765,1780626679000,-177.553819,0.00037808,7]
[424173773,1780626679000,-177.553819,0.00037808,7]
[424173769,1780626679000,-177.553819,0.00037808,7]
[424173770,1780626679000,-177.553819,0.00037808,7]
[424173771,1780626679000,-177.553819,0.00037808,7]
[424173768,1780626679000,-177.553819,0.00037808,7]
[424173767,1780626679000,-177.553819,0.00037808,7]
[424173772,1780626679000,-177.553819,0.00037808,7]
[424173783,1780626679000,-151.0,0.00037808,30]
[424173775,1780626679000,-177.553819,0.00037808,7]
[424173785,1780626679000,-211.791225,0.00037808,30]
[424173784,1780626679000,-151.0,0.00037808,30]
[424173776,1780626679000,-177.553819,0.00037808,7]
[424173778,1780626679000,-177.553819,0.00037808,7]
[424173774,1780626679000,-177.553819,0.00037808,7]
[424173812,1780626679000,-185.901162,0.00037808,30]
[424173781,1780626679000,-151.0,0.00037808,30]
[424173813,1780626679000,-151.0,0.00037808,30]
[424173844,1780626679000,-176.28,0.000379,2]
[424173845,1780626679000,-176.28,0.000379,2]
[424173842,1780626679000,-6975.74,0.000379,2]
[424173849,1780626679000,-3326.13,0.000379,2]
[424173859,1780626679000,-2397.66,0.000379,38]
[424173848,1780626679000,-3326.13,0.000379,2]
[424173851,1780626679000,-221.92,0.000379,2]
[424173850,1780626679000,-997.84,0.000379,2]
[424173853,1780626679000,-911.94,0.000379,2]
[424173854,1780626679000,-234.0,0.000379,2]
[424173855,1780626679000,-234.0,0.000379,2]
[424173858,1780626679000,-157.87,0.000379,120]
[424173857,1780626679000,-566.9,0.000379,120]
[424173856,1780626679000,-255.230815,0.000379,20]
[424173852,1780626679000,-911.94,0.000379,2]
[424173860,1780626679000,-164.0,0.00037909,11]
[424173864,1780626679000,-151.0,0.00037919,4]
[424173862,1780626679000,-500.0,0.00037917,11]
[424173861,1780626679000,-165.0,0.00037912,11]
[424173863,1780626679000,-150.0,0.00037917,120]
[424173871,1780626679000,-438.24,0.00037947,120]
[424173865,1780626679000,-158.19552394,0.00037919,2]
[424173867,1780626679000,-495.67,0.00037947,120]
[424173866,1780626679000,-150.0,0.00037927,2]
[424173870,1780626679000,-610.05,0.00037947,120]
[424173869,1780626679000,-230.42,0.00037947,120]
[424173868,1780626679000,-328.93,0.00037947,120]
[424173839,1780626679000,-116243.18,0.000379,2]
[424173841,1780626679000,-2406.28,0.000379,2]
[424173817,1780626679000,-151.0,0.00037808,30]
[424173840,1780626679000,-2406.28,0.000379,2]
[424173843,1780626679000,-6975.74,0.000379,2]
[424173814,1780626679000,-151.0,0.00037808,30]
[424173815,1780626679000,-151.0,0.00037808,30]
[424173822,1780626679000,-151.0,0.00037808,30]
[424173819,1780626679000,-151.0,0.00037808,30]
[424173818,1780626679000,-151.0,0.00037808,30]
[424173820,1780626679000,-151.0,0.00037808,30]
[424173816,1780626679000,-151.0,0.00037808,30]
[424173824,1780626679000,-300.0,0.00037829,47]
[424173834,1780626679000,-1000.0,0.0003787,2]
[424173823,1780626679000,-219.275614,0.00037808,30]
[424173825,1780626679000,-157.86,0.00037839,80]
[424173835,1780626679000,-206.14689225,0.0003788,2]
[424173821,1780626679000,-216.582973,0.00037808,30]
[424173826,1780626679000,-1609.0,0.00037848,11]
[424173833,1780626679000,-500.0,0.0003787,2]
[424173872,1780626679000,-261.57,0.00037947,120]
[424173847,1780626679000,-30531.09,0.000379,2]
[424173846,1780626679000,-30531.09,0.000379,2]
[424173836,1780626679000,-160.0687629,0.00037888,2]
[424173828,1780626679000,-565.94,0.00037863,30]
[424173837,1780626679000,-21754.58773561,0.000379,2]
[424173838,1780626679000,-116243.18,0.000379,2]
[424173830,1780626679000,-500.0,0.00037863,11]
[424173827,1780626679000,-274.89,0.00037859,120]
[424173832,1780626679000,-157.86,0.00037869,100]
[424173831,1780626679000,-159.20318347,0.00037863,30]
[424173829,1780626679000,-1121.21,0.00037863,30]
[424173912,1780626680000,-1000.0,0.00038,120]
[424173915,1780626680000,-166.66227481,0.00038,120]
[424173911,1780626680000,-1000.0,0.00038,120]
[424173913,1780626680000,-200.0,0.00038,120]
[424173910,1780626680000,-1369.62890625,0.00038,2]
[424173903,1780626680000,-12999.99999901,0.00038,30]
[424173907,1780626680000,-26306.33246295,0.00038,20]
[424173906,1780626680000,-45331.66968375,0.00038,10]
[424173902,1780626680000,-997.84,0.00038,2]
[424173905,1780626680000,-10000.0,0.00038,15]
[424173918,1780626680000,-151.0,0.00038,60]
[424173904,1780626680000,-221.92,0.00038,2]
[424173914,1780626680000,-786.75,0.00038,120]
[424173929,1780626680000,-693.0,0.00038,30]
[424173921,1780626680000,-693.0,0.00038,30]
[424173916,1780626680000,-187.94210923,0.00038,2]
[424173920,1780626680000,-850.0,0.00038,2]
[424173919,1780626680000,-1279.79,0.00038,120]
[424173923,1780626680000,-693.0,0.00038,30]
[424173933,1780626680000,-693.0,0.00038,30]
[424173922,1780626680000,-693.0,0.00038,30]
[424173934,1780626680000,-693.0,0.00038,30]
[424173924,1780626680000,-693.0,0.00038,30]
[424173930,1780626680000,-693.0,0.00038,30]
[424173928,1780626680000,-693.0,0.00038,30]
[424173931,1780626680000,-693.0,0.00038,30]
[424173901,1780626680000,-10000.0,0.00038,90]
[424173917,1780626680000,-182.0,0.00038,120]
[424173900,1780626680000,-840.9,0.00038,2]
[424173889,1780626680000,-163.0,0.0003798,60]
[424173908,1780626680000,-2000.0,0.00038,48]
[424173926,1780626680000,-693.0,0.00038,30]
[424173873,1780626680000,-248.19,0.00037947,120]
[424173884,1780626680000,-662.23,0.00037947,120]
[424173883,1780626680000,-536.37,0.00037947,120]
[424173874,1780626680000,-276.45,0.00037947,120]
[424173876,1780626680000,-840.79,0.00037947,120]
[424173877,1780626680000,-316.18,0.00037947,120]
[424173875,1780626680000,-1353.01,0.00037947,120]
[424173878,1780626680000,-395.06,0.00037947,120]
[424173880,1780626680000,-818.59,0.00037947,120]
[424173882,1780626680000,-1568.57,0.00037947,120]
[424173879,1780626680000,-355.24,0.00037947,120]
[424173881,1780626680000,-210.78,0.00037947,120]
[424173888,1780626680000,-500.0,0.00037972,11]
[424173885,1780626680000,-872.31,0.00037947,120]
[424173890,1780626680000,-163.0,0.0003798,60]
[424173891,1780626680000,-160.0687629,0.00037988,2]
[424173892,1780626680000,-34005.97,0.00038,2]
[424173895,1780626680000,-2406.28,0.00038,2]
[424173887,1780626680000,-75482.09132874,0.00037957,2]
[424173896,1780626680000,-6975.74,0.00038,2]
[424173886,1780626680000,-300.74,0.00037947,120]
[424173894,1780626680000,-116243.18,0.00038,2]
[424173893,1780626680000,-343.85115539,0.00038,10]
[424173909,1780626680000,-160.0,0.00038,20]
[424173898,1780626680000,-176.28,0.00038,2]
[424173897,1780626680000,-2725.7012541,0.00038,3]
[424173899,1780626680000,-30531.09,0.00038,2]
[424173932,1780626680000,-693.0,0.00038,30]
[424173925,1780626680000,-693.0,0.00038,30]
[424173935,1780626680000,-693.0,0.00038,30]
[424173964,1780626680000,-693.0,0.00038,30]
[424173968,1780626680000,-693.0,0.00038,30]
[424173965,1780626680000,-693.0,0.00038,30]
[424173966,1780626680000,-693.0,0.00038,30]
[424173973,1780626680000,-693.0,0.00038,30]
[424173983,1780626680000,-781.0,0.00038,30]
[424173972,1780626680000,-693.0,0.00038,30]
[424173975,1780626680000,-693.0,0.00038,30]
[424173976,1780626680000,-693.0,0.00038,30]
[424173974,1780626680000,-693.0,0.00038,30]
[424173977,1780626680000,-693.0,0.00038,30]
[424173978,1780626680000,-693.0,0.00038,30]
[424173982,1780626680000,-781.0,0.00038,30]
[424173967,1780626680000,-693.0,0.00038,30]
[424173980,1780626680000,-184.36837797,0.00038,2]
[424173985,1780626680000,-781.0,0.00038,30]
[424173984,1780626680000,-781.0,0.00038,30]
[424173995,1780626680000,-25000.0,0.00038017,10]
[424173986,1780626680000,-781.0,0.00038,30]
[424173988,1780626680000,-781.0,0.00038,30]
[424173991,1780626680000,-781.0,0.00038,30]
[424173990,1780626680000,-781.0,0.00038,30]
[424173987,1780626680000,-781.0,0.00038,30]
[424173989,1780626680000,-781.0,0.00038,30]
[424173992,1780626680000,-781.0,0.00038,30]
[424173994,1780626680000,-781.0,0.00038,30]
[424173927,1780626680000,-693.0,0.00038,30]
[424173993,1780626680000,-781.0,0.00038,30]
[424173981,1780626680000,-781.0,0.00038,30]
[424173971,1780626680000,-693.0,0.00038,30]
[424173979,1780626680000,-693.0,0.00038,30]
[424173970,1780626680000,-693.0,0.00038,30]
[424173946,1780626680000,-693.0,0.00038,30]
[424173969,1780626680000,-693.0,0.00038,30]
[424173947,1780626680000,-693.0,0.00038,30]
[424173936,1780626680000,-693.0,0.00038,30]
[424173938,1780626680000,-693.0,0.00038,30]
[424173937,1780626680000,-693.0,0.00038,30]
[424173939,1780626680000,-693.0,0.00038,30]
[424173940,1780626680000,-693.0,0.00038,30]
[424173943,1780626680000,-693.0,0.00038,30]
[424173942,1780626680000,-693.0,0.00038,30]
[424173944,1780626680000,-693.0,0.00038,30]
[424173941,1780626680000,-693.0,0.00038,30]
[424173948,1780626680000,-693.0,0.00038,30]
[424173951,1780626680000,-693.0,0.00038,30]
[424173945,1780626680000,-693.0,0.00038,30]
[424173952,1780626680000,-693.0,0.00038,30]
[424173961,1780626680000,-693.0,0.00038,30]
[424173959,1780626680000,-693.0,0.00038,30]
[424173962,1780626680000,-693.0,0.00038,30]
[424173960,1780626680000,-693.0,0.00038,30]
[424173958,1780626680000,-693.0,0.00038,30]
[424173957,1780626680000,-693.0,0.00038,30]
[424173953,1780626680000,-693.0,0.00038,30]
[424173963,1780626680000,-693.0,0.00038,30]
[424173956,1780626680000,-693.0,0.00038,30]
[424173955,1780626680000,-693.0,0.00038,30]
[424173950,1780626680000,-693.0,0.00038,30]
[424173949,1780626680000,-693.0,0.00038,30]
[424173954,1780626680000,-693.0,0.00038,30]
[424174035,1780626681000,-2381.5,0.00038135,15]
[424174038,1780626681000,-500.0,0.00038136,11]
[424174040,1780626681000,-1980.53636176,0.00038157,2]
[424174039,1780626681000,-211.0,0.00038146,120]
[424174037,1780626681000,-1052.89,0.00038135,2]
[424174034,1780626681000,-176.555,0.00038134,13]
[424174033,1780626681000,-170.07,0.00038134,13]
[424174025,1780626681000,-30531.09,0.000381,2]
[424174027,1780626681000,-319.61,0.00038101,120]
[424174029,1780626681000,-192.0,0.00038103,120]
[424174023,1780626681000,-6975.74,0.000381,2]
[424174046,1780626681000,-5000.0,0.00038174,2]
[424174036,1780626681000,-152.21,0.00038135,15]
[424174045,1780626681000,-5000.0,0.00038174,2]
[424174054,1780626681000,-10000.0,0.00038199,2]
[424174044,1780626681000,-154.23,0.0003816,60]
[424174042,1780626681000,-2108.77916305,0.00038157,2]
[424174043,1780626681000,-1596.63065868,0.00038158,2]
[424174048,1780626681000,-250.0,0.00038174,2]
[424174059,1780626681000,-4835.27,0.00038245,2]
[424174058,1780626681000,-164.0,0.00038232,11]
[424174047,1780626681000,-5000.0,0.00038174,2]
[424174057,1780626681000,-300.0,0.00038232,49]
[424174055,1780626681000,-1592.0,0.00038214,11]
[424174053,1780626681000,-158.19552394,0.00038193,2]
[424174050,1780626681000,-250.0,0.00038174,2]
[424174056,1780626681000,-1592.0,0.00038218,11]
[424174031,1780626681000,-170.06,0.00038134,13]
[424174041,1780626681000,-1814.87746368,0.00038157,2]
[424174030,1780626681000,-4289.6,0.00038125,30]
[424173998,1780626681000,-25000.0,0.00038027,10]
[424174028,1780626681000,-544.77,0.00038101,120]
[424174052,1780626681000,-287.07102019,0.00038191,11]
[424173996,1780626681000,-25000.0,0.00038026,10]
[424173999,1780626681000,-25000.0,0.00038035,10]
[424174000,1780626681000,-25000.0,0.00038044,10]
[424173997,1780626681000,-500.0,0.00038027,11]
[424174007,1780626681000,-25000.0,0.0003807,10]
[424174004,1780626681000,-500.0,0.0003807,2]
[424174001,1780626681000,-25000.0,0.00038052,10]
[424174003,1780626681000,-25000.0,0.00038067,10]
[424174005,1780626681000,-1000.0,0.0003807,2]
[424174002,1780626681000,-25000.0,0.00038061,10]
[424174006,1780626681000,-25000.0,0.0003807,10]
[424174011,1780626681000,-264.58,0.0003809,93]
[424174008,1780626681000,-300.0,0.00038079,48]
[424174010,1780626681000,-160.0687629,0.00038088,2]
[424174009,1780626681000,-500.0,0.00038082,11]
[424174012,1780626681000,-504.0,0.00038096,14]
[424174019,1780626681000,-29537.68,0.000381,2]
[424174018,1780626681000,-5000.0,0.000381,2]
[424174017,1780626681000,-27536.76,0.000381,2]
[424174015,1780626681000,-253.22717104,0.000381,33]
[424174014,1780626681000,-160.0,0.000381,20]
[424174020,1780626681000,-34005.97,0.000381,2]
[424174013,1780626681000,-25000.0,0.00038097,10]
[424174016,1780626681000,-64664.68982705,0.000381,2]
[424174022,1780626681000,-2406.28,0.000381,2]
[424174032,1780626681000,-170.06,0.00038134,13]
[424174021,1780626681000,-116243.18,0.000381,2]
[424174024,1780626681000,-176.28,0.000381,2]
[424174026,1780626681000,-3326.13,0.000381,2]
[424174051,1780626681000,-151.19220666,0.00038189,2]
[424174122,1780626681000,-154.23,0.0003846,120]
[424174063,1780626681000,-151.19220666,0.00038289,2]
[424174097,1780626681000,-154.23,0.0003836,120]
[424174095,1780626681000,-874.8,0.00038356,120]
[424174096,1780626681000,-1164.91,0.00038356,30]
[424174098,1780626681000,-280.0,0.0003838,120]
[424174092,1780626681000,-783.53,0.00038356,30]
[424174099,1780626681000,-300.0,0.0003838,50]
[424174110,1780626681000,-5000.0,0.00038412,2]
[424174108,1780626681000,-5000.0,0.00038412,2]
[424174109,1780626681000,-5000.0,0.00038412,2]
[424174103,1780626681000,-285.01,0.000384,120]
[424174107,1780626681000,-5000.0,0.00038412,2]
[424174111,1780626681000,-5000.0,0.00038412,2]
[424174106,1780626681000,-182.0,0.000384,120]
[424174091,1780626681000,-645.65,0.00038356,120]
[424174105,1780626681000,-187.363875,0.000384,7]
[424174101,1780626681000,-265.46421792,0.00038386,2]
[424174104,1780626681000,-252.429762,0.000384,7]
[424174112,1780626681000,-5000.0,0.00038412,2]
[424174114,1780626681000,-5000.0,0.00038412,2]
[424174113,1780626681000,-5000.0,0.00038412,2]
[424174115,1780626681000,-5000.0,0.00038412,2]
[424174121,1780626681000,-300.0,0.00038459,51]
[424174120,1780626681000,-300.0,0.00038455,51]
[424174117,1780626681000,-300.0,0.00038414,51]
[424174119,1780626681000,-300.0,0.00038447,51]
[424174116,1780626681000,-4915.94861325,0.00038412,2]
[424174118,1780626681000,-300.0,0.00038435,51]
[424174049,1780626681000,-250.0,0.00038174,2]
[424174102,1780626681000,-151.19220666,0.00038389,2]
[424174089,1780626681000,-1000.0,0.00038356,120]
[424174100,1780626681000,-20847.26980347,0.00038385,2]
[424174093,1780626681000,-963.12,0.00038356,120]
[424174061,1780626681000,-159.20318347,0.00038274,30]
[424174090,1780626681000,-675.85,0.00038356,120]
[424174062,1780626681000,-28596.25,0.00038276,60]
[424174069,1780626681000,-617.74,0.00038335,120]
[424174064,1780626681000,-150.0,0.00038303,120]
[424174065,1780626681000,-150.0,0.00038303,120]
[424174060,1780626681000,-154.23,0.0003826,60]
[424174071,1780626681000,-411.43,0.00038335,120]
[424174070,1780626681000,-352.08,0.00038335,120]
[424174068,1780626681000,-177.19523279,0.00038329,120]
[424174066,1780626681000,-3305.3365191,0.00038307,30]
[424174073,1780626681000,-1523.19,0.00038335,120]
[424174083,1780626681000,-1500.0,0.00038356,120]
[424174085,1780626681000,-8147.13,0.00038356,14]
[424174072,1780626681000,-232.31,0.00038335,120]
[424174067,1780626681000,-300.0,0.00038324,50]
[424174087,1780626681000,-244.22076021,0.00038356,2]
[424174094,1780626681000,-35309.28,0.00038356,14]
[424174075,1780626681000,-293.12,0.00038335,120]
[424174088,1780626681000,-488.44152041,0.00038356,2]
[424174086,1780626681000,-1000.0,0.00038356,120]
[424174082,1780626681000,-172.0,0.00038356,120]
[424174081,1780626681000,-661.64758056,0.00038356,120]
[424174076,1780626681000,-154.89,0.00038335,120]
[424174079,1780626681000,-150.0,0.00038356,120]
[424174078,1780626681000,-5000.0,0.00038356,120]
[424174080,1780626681000,-5000.0,0.00038356,120]
[424174084,1780626681000,-582.0,0.00038356,120]
[424174074,1780626681000,-1153.19,0.00038335,120]
[424174077,1780626681000,-460.0,0.00038354,5]
[424174164,1780626682000,-250.0,0.00038563,2]
[424174175,1780626682000,-10000.0,0.000386,5]
[424174172,1780626682000,-124050.51056856,0.000386,5]
[424174171,1780626682000,-151.19220666,0.00038589,2]
[424174166,1780626682000,-2000.0,0.00038575,30]
[424174165,1780626682000,-250.0,0.00038563,2]
[424174153,1780626682000,-5800.0,0.00038542,2]
[424174156,1780626682000,-216.89957659,0.00038553,120]
[424174154,1780626682000,-213.62090161,0.00038553,120]
[424174155,1780626682000,-213.42948657,0.00038553,120]
[424174161,1780626682000,-634.75,0.0003856,10]
[424174167,1780626682000,-350.0,0.0003858,30]
[424174157,1780626682000,-219.34376694,0.00038553,120]
[424174174,1780626682000,-187.363875,0.000386,30]
[424174186,1780626682000,-478.386699,0.0003867,28]
[424174173,1780626682000,-252.429761,0.000386,30]
[424174176,1780626682000,-2000.0,0.000386,7]
[424174169,1780626682000,-5000.0,0.00038588,2]
[424174170,1780626682000,-169.9953927,0.00038589,7]
[424174178,1780626682000,-5000.0,0.0003863,120]
[424174188,1780626682000,-159.20318347,0.00038685,30]
[424174177,1780626682000,-900.0,0.0003863,60]
[424174189,1780626682000,-151.19220666,0.00038689,2]
[424174180,1780626682000,-211.66061129,0.0003863,2]
[424174179,1780626682000,-150.0,0.0003863,120]
[424174185,1780626682000,-154.23,0.0003866,120]
[424174182,1780626682000,-554.64,0.00038639,120]
[424174183,1780626682000,-2867.9427,0.0003864,30]
[424174162,1780626682000,-5000.0,0.00038563,2]
[424174168,1780626682000,-436.13,0.00038585,2]
[424174158,1780626682000,-216.55761003,0.00038553,120]
[424174124,1780626682000,-300.0,0.00038464,51]
[424174159,1780626682000,-213.16325468,0.00038553,120]
[424174123,1780626682000,-300.0,0.00038462,51]
[424174126,1780626682000,-300.0,0.00038465,51]
[424174134,1780626682000,-585.64404755,0.000385,5]
[424174130,1780626682000,-6549.13,0.0003849,12]
[424174135,1780626682000,-200.0,0.000385,16]
[424174125,1780626682000,-300.0,0.00038465,51]
[424174137,1780626682000,-160.203306,0.000385,21]
[424174132,1780626682000,-241.51568164,0.00038498,2]
[424174128,1780626682000,-158.19552394,0.00038467,2]
[424174129,1780626682000,-151.19220666,0.00038489,2]
[424174133,1780626682000,-110949.29920079,0.000385,30]
[424174136,1780626682000,-160.245782,0.000385,21]
[424174131,1780626682000,-150.0,0.00038493,120]
[424174187,1780626682000,-176.555,0.00038682,13]
[424174163,1780626682000,-5000.0,0.00038563,2]
[424174138,1780626682000,-160.186607,0.000385,21]
[424174142,1780626682000,-166.50437971,0.000385,120]
[424174141,1780626682000,-48139.16876074,0.000385,102]
[424174143,1780626682000,-5800.0,0.00038509,2]
[424174147,1780626682000,-5800.0,0.00038526,2]
[424174148,1780626682000,-5800.0,0.00038534,2]
[424174139,1780626682000,-179.428972,0.000385,21]
[424174144,1780626682000,-5800.0,0.00038517,2]
[424174145,1780626682000,-264.58,0.0003852,105]
[424174146,1780626682000,-3364.32,0.00038525,120]
[424174149,1780626682000,-5800.0,0.00038534,2]
[424174150,1780626682000,-5800.0,0.00038534,2]
[424174152,1780626682000,-35309.28,0.00038536,14]
[424174160,1780626682000,-154.23,0.0003856,120]
[424174151,1780626682000,-32646.09,0.00038536,14]
[424174140,1780626682000,-166.58356952,0.000385,60]
[424174181,1780626682000,-423.32122257,0.0003863,2]
[424174127,1780626682000,-314.27,0.00038466,51]
[424174190,1780626682000,-447.71,0.000387,120]
[424174223,1780626682000,-500.0,0.000387,14]
[424174228,1780626682000,-500.0,0.000387,14]
[424174229,1780626682000,-500.0,0.000387,14]
[424174230,1780626682000,-379.5,0.000387,14]
[424174224,1780626682000,-500.0,0.000387,14]
[424174226,1780626682000,-500.0,0.000387,14]
[424174231,1780626682000,-579.288694,0.000387,21]
[424174232,1780626682000,-9476.96,0.00038715,14]
[424174242,1780626682000,-453.0,0.0003874,120]
[424174235,1780626682000,-250.0,0.00038726,7]
[424174243,1780626682000,-512.0,0.0003874,120]
[424174240,1780626682000,-761.0,0.00038727,120]
[424174237,1780626682000,-153.89720939,0.00038727,2]
[424174234,1780626682000,-160.99999999,0.00038719,120]
[424174227,1780626682000,-500.0,0.000387,14]
[424174239,1780626682000,-150.0,0.00038727,2]
[424174236,1780626682000,-153.89720939,0.00038727,2]
[424174238,1780626682000,-466.61,0.00038727,2]